[Event "34th MPL National U14G-ch 2022"]
[Site "Ahmedabad"]
[Date "2022.05.11"]
[Round "6.1"]
[White "Shreya G Hipparagi"]
[Black "Shubhi Gupta"]
[Result "1-0"]
[ECO "C54"]
[WhiteElo "1548"]
[BlackElo "1613"]
[Annotator "NA RC COMBH"]
[PlyCount "97"]
[EventDate "2022.05.09"]
[EventType "swiss"]
[EventCountry "IND"]
[SourceTitle "playchess.com"]
[Source "ChessBase"]
[SourceQuality "1"]
[TimeControl "5400+30"]

1. e4 {[%emt 0:00:14]} e5 {[%emt 0:00:13]} 2. Nf3 {[%emt 0:00:26]} Nc6 {[%emt 0:00:05]} 3. Bc4 {[%emt 0:00:15]} Bc5 {[%emt 0:00:14]} 4. c3 {[%emt 0:00:36]} Nf6 {[%emt 0:00:20]} 5. d3 {[%emt 0:01:28]} d6 {[%emt 0:00:43]} 6. O-O {[%emt 0:01:35]} h6 {[%emt 0:01:34]} 7. Bb3 {[%emt 0:02:40]} O-O {[%emt 0:01:06]} 8. Re1 {[%emt 0:02:28]} Bb6 {[%emt 0:03:04]} 9. h3 {[%emt 0:01:00]} Be6 {[%emt 0:01:06]} 10. Nbd2 {[%emt 0:01:50]} Ne7 {[%emt 0:02:36]} 11. Nf1 {[%emt 0:01:35]} Ng6 {[%emt 0:02:04]} 12. Ng3 {[%emt 0:02:15]} Qd7 {[%emt 0:04:32]} 13. d4 {[%emt 0:02:20]} Qc8 {[%emt 0:07:09]} 14. Bc2 {[%emt 0:07:48]} Re8 {[%emt 0:01:39]} 15. b3 {[%emt 0:07:18]} Bd7 {[%emt 0:11:01]} 16. a4 {[%emt 0:03:12]} a5 {[%emt 0:00:55]} 17. c4 {[%emt 0:02:24]} exd4 {[%emt 0:04:44]} 18. Nxd4 {[%emt 0:00:49]} Nh4 {[%emt 0:04:16]} 19. Nf3 {[%emt 0:05:39]} Ng6 {[%emt 0:08:15]} 20. Nf5 {[%emt 0:05:46]} Nf8 {[%emt 0:10:11]} 21. Bb2 {[%emt 0:04:28]} N8h7 {[%emt 0:00:51]} 22. Bd4 {[%emt 0:02:12]} Bxf5 {[%emt 0:01:34]} 23. exf5 {[%emt 0:02:47]} Rxe1+ {[%emt 0:00:50]} 24. Qxe1 {[%emt 0:00:50]} Bxd4 {[%emt 0:00:14]} 25. Nxd4 {[%emt 0:00:14]} Qd7 {[%emt 0:00:30]} 26. Qd2 {[%emt 0:01:03]} b6 {[%emt 0:33:44]} 27. Re1 {[%emt 0:01:34]} d5 {[%emt 0:00:00]} 28. cxd5 {[%emt 0:09:47]} Nxd5 {[%emt 0:00:00]} 29. Nf3 {[%emt 0:03:52]} Nhf6 {[%emt 0:00:00]} 30. Ne5 {[%emt 0:02:22]} Qd6 {[%emt 0:00:00]} 31. Nc4 {[%emt 0:01:29]} Qc5 {[%emt 0:00:00]} 32. Re5 {[%emt 0:02:08]} Rd8 {[%emt 0:00:00]} 33. Qe2 {[%emt 0:03:25]} Qc6 {[%emt 0:00:00]} 34. Be4 {[%emt 0:02:00]} Qd7 {[%emt 0:00:00]} 35. Bf3 {[%emt 0:02:01]} Nc3 {[%emt 0:00:00]} 36. Qe1 {[%emt 0:01:10]} Qd4 {[%emt 0:00:00]} 37. Re7 {[%emt 0:01:59]} Nxa4 {[%emt 0:00:00]} 38. Ne5 {[%emt 0:01:07]} Qc3 {[%emt 0:00:00]} 39. Qe2 {[%emt 0:03:49]} Qxb3 {[%emt 0:00:00]} 40. Nxf7 {[%emt 0:01:05]} Qb1+ {[%emt 0:00:00]} 41. Kh2 {[%emt 0:00:49]} Rf8 {[%emt 0:01:37]} 42. Qe6 {[%emt 0:02:48]} Kh7 {[%emt 0:00:54]} 43. Bd5 {[%emt 0:02:19]} Qb2 {[%emt 0:02:01]} 44. Ne5 {[%emt 0:01:17]} Qb4 {[%emt 0:03:50]} 45. Ng6 {[%emt 0:00:33]} Nxd5 {[%emt 0:00:30]} 46. Nxf8+ {[%emt 0:00:36]} Kh8 {[%emt 0:00:05]} 47. Ng6+ {[%emt 0:00:10]} Kh7 {[%emt 0:00:03]} 48. Qxd5 {[%emt 0:00:12]} Nc3 {[%emt 0:00:24]} 49. Qe5 {[%emt 0:00:13]} 1-0

[Event "34th MPL National U14G-ch 2022"]
[Site "Ahmedabad"]
[Date "2022.05.11"]
[Round "6.2"]
[White "Bhat Sannidhi Ramakrishna"]
[Black "Roy Aanya"]
[Result "1/2-1/2"]
[ECO "A43"]
[WhiteElo "1373"]
[BlackElo "1560"]
[Annotator "NA RC COMBH"]
[PlyCount "129"]
[EventDate "2022.05.09"]
[EventType "swiss"]
[EventCountry "IND"]
[SourceTitle "playchess.com"]
[Source "ChessBase"]
[SourceQuality "1"]
[TimeControl "5400+30"]

1. d4 {[%emt 0:00:03]} Nf6 {[%emt 0:00:08]} 2. Nf3 {[%emt 0:00:10]} c5 {[%emt 0:00:07]} 3. d5 {[%emt 0:00:12]} d6 {[%emt 0:00:19]} 4. Nc3 {[%emt 0:00:17]} b5 {[%emt 0:00:56]} 5. Nxb5 {[%emt 0:09:22]} Qa5+ {[%emt 0:00:16]} 6. Nc3 {[%emt 0:01:58]} Ba6 {[%emt 0:00:32]} 7. Bd2 {[%emt 0:01:41]} Nbd7 {[%emt 0:01:18]} 8. e4 {[%emt 0:01:52]} Bxf1 {[%emt 0:00:15]} 9. Kxf1 {[%emt 0:00:05]} g6 {[%emt 0:00:26]} 10. g3 {[%emt 0:02:34]} Bg7 {[%emt 0:00:09]} 11. Kg2 {[%emt 0:00:48]} O-O {[%emt 0:02:27]} 12. Re1 {[%emt 0:11:29]} Rab8 {[%emt 0:16:22]} 13. Nb1 {[%emt 0:02:26]} Qa6 {[%emt 0:06:46]} 14. Bc3 {[%emt 0:01:29]} c4 {[%emt 0:02:22]} 15. Nbd2 {[%emt 0:20:11]} Nb6 {[%emt 0:17:32]} 16. b3 {[%emt 0:05:40]} Rfc8 {[%emt 0:01:03]} 17. Qe2 {[%emt 0:00:48]} Qb7 {[%emt 0:07:43]} 18. Rec1 {[%emt 0:14:58]} cxb3 {[%emt 0:03:21]} 19. cxb3 {[%emt 0:00:04]} Rc7 {[%emt 0:01:00]} 20. Bb2 {[%emt 0:07:04]} Rxc1 {[%emt 0:07:21]} 21. Rxc1 {[%emt 0:00:18]} a5 {[%emt 0:03:10]} 22. Rc6 {[%emt 0:02:09]} Nfxd5 {[%emt 0:03:20]} 23. exd5 {[%emt 0:05:02]} Bxb2 {[%emt 0:00:09]} 24. Rxb6 {[%emt 0:03:47]} Qxb6 {[%emt 0:00:27]} 25. Nc4 {[%emt 0:00:02]} Qb5 {[%emt 0:01:25]} 26. Qxe7 {[%emt 0:00:36]} a4 {[%emt 0:05:12]} 27. Nxb2 {[%emt 0:04:44]} axb3 {[%emt 0:00:15]} 28. axb3 {[%emt 0:00:04]} Qxb3 {[%emt 0:00:15]} 29. Qxd6 {[%emt 0:00:04]} Qxb2 {[%emt 0:00:14]} 30. Qf4 {[%emt 0:02:29]} Qb4 {[%emt 0:02:04]} 31. Qe5 {[%emt 0:01:22]} Rd8 {[%emt 0:01:04]} 32. Ng5 {[%emt 0:01:38]} Qd6 {[%emt 0:01:56]} 33. Qxd6 {[%emt 0:00:13]} Rxd6 {[%emt 0:00:02]} 34. Ne4 {[%emt 0:00:02]} Rd8 {[%emt 0:00:37]} 35. g4 {[%emt 0:00:32]} Kg7 {[%emt 0:00:35]} 36. Nc3 {[%emt 0:00:54]} Rc8 {[%emt 0:04:14]} 37. Ne4 {[%emt 0:00:48]} Rd8 {[%emt 0:00:24]} 38. Nc3 {[%emt 0:00:28]} f5 {[%emt 0:01:03]} 39. g5 {[%emt 0:00:41]} Kf7 {[%emt 0:00:38]} 40. Kf3 {[%emt 0:00:30]} Ke7 {[%emt 0:00:23]} 41. Ke3 {[%emt 0:00:45]} Kd6 {[%emt 0:00:43]} 42. Kd4 {[%emt 0:00:19]} Rb8 {[%emt 0:00:22]} 43. h3 {[%emt 0:00:48]} Rb4+ {[%emt 0:00:20]} 44. Ke3 {[%emt 0:00:20]} Rh4 {[%emt 0:00:42]} 45. f4 {[%emt 0:00:18]} Rxh3+ {[%emt 0:00:08]} 46. Kd4 {[%emt 0:00:07]} Rxc3 {[%emt 0:00:15]} 47. Kxc3 {[%emt 0:00:07]} Kxd5 {[%emt 0:00:03]} 48. Kd3 {[%emt 0:00:08]} Kc5 {[%emt 0:00:04]} 49. Kc3 {[%emt 0:00:11]} Kd5 {[%emt 0:00:34]} 50. Kd3 {[%emt 0:00:06]} Kd6 {[%emt 0:01:34]} 51. Kd2 {[%emt 0:01:54]} Ke6 {[%emt 0:00:24]} 52. Ke2 {[%emt 0:00:23]} Kf7 {[%emt 0:00:03]} 53. Kf3 {[%emt 0:00:34]} Kg7 {[%emt 0:00:26]} 54. Kg3 {[%emt 0:00:51]} h5 {[%emt 0:00:58]} 55. gxh6+ {[%emt 0:00:11]} Kxh6 {[%emt 0:00:02]} 56. Kh3 {[%emt 0:00:14]} Kg7 {[%emt 0:00:28]} 57. Kg3 {[%emt 0:00:10]} Kf7 {[%emt 0:01:03]} 58. Kf3 {[%emt 0:01:28]} Kf6 {[%emt 0:01:52]} 59. Kf2 {[%emt 0:00:40]} Ke6 {[%emt 0:02:17]} 60. Ke2 {[%emt 0:00:14]} Kf7 {[%emt 0:00:27]} 61. Kf2 {[%emt 0:00:38]} Ke6 {[%emt 0:00:56]} 62. Ke2 {[%emt 0:00:09]} Kf6 {[%emt 0:00:15]} 63. Kf3 {[%emt 0:00:11]} Ke7 {[%emt 0:02:02]} 64. Ke3 {[%emt 0:00:23]} Ke6 {[%emt 0:01:18]} 65. Ke2 {[%emt 0:00:57]} 1/2-1/2

[Event "34th MPL National U14G-ch 2022"]
[Site "Ahmedabad"]
[Date "2022.05.11"]
[Round "6.3"]
[White "Charvi Patidar"]
[Black "Mrittika Mallick"]
[Result "0-1"]
[ECO "D47"]
[WhiteElo "1501"]
[BlackElo "1982"]
[Annotator "TA"]
[PlyCount "176"]
[EventDate "2022.05.09"]
[EventType "swiss"]
[EventCountry "IND"]
[SourceTitle "playchess.com"]
[Source "ChessBase"]
[SourceQuality "1"]
[TimeControl "5400+30"]

{[%evp 18,176,34,9,25,7,9,-23,59,-104,-53,-61,0,-57,-68,-62,-53,-39,50,32,24,21,68,77,59,-146,-137,-186,-168,-170,-156,-150,-143,-148,-60,-105,-107,-117,-111,-390,-390,-383,-382,-376,-205,-168,0,-383,-193,-383,-383,-383,-383,-384,-382,-359,-300,-300,-300,-333,-333,-333,-333,-333,-245,-333,-333,-333,-333,-427,-333,-333,-333,-333,-333,-435,-394,-530,-333,-333,-333,-325,-325,-325,-325,-318,-318,-318,-230,-318,-318,-318,-311,-311,-311,-394,-394,-394,-93,-394,-387,-387,-311,-311,-311,-29978,-387,-372,-311,-29979,-387,-352,0,-29979,-311,-692,-692,-29979,-601,-481,-310,-29995,-29996,-29996,-29979,-29968,-808,-800,-800,-793,-793,-799,-799,-29978,-791,-29991,-777,-29991,-770,-800,-772,-755,-326,-29982,-29981,-29991,-643,-29990,-326,-29989,-29990,-29991,-29991,-29991,-29992,-29993,-29994,-29996,-29997,-29997,-29998]} 1. d4 {[%emt 0:01:33]} d5 {[%emt 0:00:54]} 2. c4 {[%emt 0:00:09]} c6 {[%emt 0:00:21]} 3. Nc3 {[%emt 0:00:06]} Nf6 {[%emt 0:00:20]} 4. Nf3 {[%emt 0:00:08]} e6 {[%emt 0:00:15]} 5. e3 {[%emt 0:00:06]} Nbd7 {[%emt 0:00:11]} 6. Bd3 {[%emt 0:00:06]} dxc4 {[%emt 0:00:29]} 7. Bxc4 {[%emt 1:31:52]} b5 {[%emt 0:00:17]} 8. Bd3 {[%emt 0:00:00]} Bd6 {[%emt 0:00:29]} 9. O-O {[%emt 0:00:00]} O-O {[%emt 0:00:40]} 10. a3 {[%emt 0:00:00]} Re8 {[%emt 0:06:07] D47: Semi-Slav: Meran System.} 11. Qc2 {[%emt 0:00:00]} (11. Bd2 {feels hotter.} Bb7 12. Ng5 h6 13. Nge4) 11... Bb7 {[%emt 0:04:33] [#]} 12. b4 $146 {[%emt 0:00:00]} ({Predecessor:} 12. h3 e5 13. Bd2 h6 14. Rad1 exd4 15. exd4 a6 16. b4 a5 17. bxa5 Bxa3 18. Ne5 b4 19. Nxd7 Qxd7 {½-½ (35) Zidu,J (2494)-Marciz,A (2455) FICGS email 2020}) 12... e5 {[%emt 0:05:15]} (12... a5 13. bxa5 Rxa5) (12... a5 $11 13. bxa5 Rxa5) 13. e4 $2 {[%emt 0:00:00]} (13. Ne4 Nxe4 14. Bxe4) (13. Ne4 $14 {keeps the upper hand.} Nxe4 14. Bxe4) 13... Qc7 {[%emt 0:26:38]} (13... Rc8 14. Be3 exd4 15. Bxd4 c5 16. Bxf6 (16. bxc5 Bxc5 17. Bxf6 Nxf6) 16... Qxf6 17. Nxb5 c4 18. Nxd6 Qxd6) (13... a6 $17 14. Be3 exd4 15. Bxd4 c5 16. bxc5 Bxc5 17. Bxf6 Qxf6) 14. h3 {[%emt 0:00:00]} a6 {[%emt 0:05:14]} (14... exd4 15. Nxd4 a6) (14... exd4 $15 15. Nxd4 a6) 15. Be3 {[%emt 0:00:00]} (15. dxe5 $11 Nxe5 16. Nxe5 Bxe5 17. Be3) 15... exd4 $15 {[%emt 0:02:18]} 16. Nxd4 {[%emt 0:00:00]} c5 {[%emt 0:02:18]} 17. bxc5 {[%emt 0:00:00]} Nxc5 {[%emt 0:02:13] [#]} (17... Bxc5 18. f3 Rac8) ({Black should play} 17... Bxc5 $15 18. f3 Ne5) 18. Ncxb5 $1 {[%emt 0:00:00]} axb5 {[%emt 0:01:38]} 19. Nxb5 {[%emt 0:00:00]} Qe7 {[%emt 0:00:11]} (19... Bh2+ $11 {was preferrable.} 20. Kh1 Qb8 21. Qxc5 Nxe4) 20. Nxd6 $14 {[%emt 0:00:00]} Nxd3 {[%emt 0:00:06]} 21. Nxe8 {[%emt 0:00:00]} (21. Qxd3 $14 {stays ahead.} Red8 22. Rfd1) 21... Qxe4 $17 {[%emt 0:00:25][%csl Gb7][%cal Re4g2]} 22. Nxf6+ {[%emt 0:00:00]} gxf6 {[%emt 0:02:46][%csl Gb7][%cal Re4g2]} 23. f3 {[%emt 0:00:00]} Qxe3+ {[%emt 0:00:07]} 24. Kh2 {[%emt 0:00:00]} Rc8 {[%emt 0:07:49]} 25. Qb3 {[%emt 0:00:00]} Ba6 {[%emt 0:07:18]} (25... Qf4+ 26. Kh1 Ba6) ({Better is} 25... Qe5+ $17 26. f4 Qe4) 26. Qa4 {[%emt 0:00:00]} (26. f4) 26... Bc4 {[%emt 0:02:08]} 27. Qd7 {[%emt 0:00:00]} Be6 $36 {[%emt 0:00:58][%mdl 2048] White is under strong pressure.} 28. Qa4 {[%emt 0:00:00][%mdl 8192]} (28. Qd6) (28. Qd6 $17) 28... Rc4 $19 {[%emt 0:06:31]} 29. Qa8+ {[%emt 0:01:05]} Kg7 $1 {[%emt 0:00:13] Dancing on a razor blade.} 30. Qb8 {[%emt 0:00:36]} Ne5 {[%emt 0:03:38] Active counter play!} (30... Rc5 $142 {White must now prevent ...Rg5.} 31. Kh1 Rg5) 31. Qb2 {[%emt 0:02:17]} Nd3 {[%emt 0:03:33] Against Qf2} (31... Qf4+ 32. Kh1 Nd3) (31... Qf4+ 32. Kh1 Nd3) 32. Qb8 {[%emt 0:00:14]} Nf4 {[%emt 0:02:17]} (32... Rc5 33. Rg1 Re5) (32... Rc5 $142 {And now ...Rg5 would win.} 33. Kh1 Rg5) 33. Qb2 $2 {[%emt 0:01:17]} (33. Rae1 Qxa3 34. Qb6) (33. Rae1 Qxa3 34. Rd1) 33... Ne2 {[%emt 0:00:50]} 34. Rfe1 {[%emt 0:01:12]} Qf4+ {[%emt 0:00:31]} 35. Kh1 {[%emt 0:00:02]} Ng3+ {[%emt 0:00:35]} 36. Kg1 {[%emt 0:00:09]} Bf5 {[%emt 0:01:15]} 37. Ra2 {[%emt 0:02:48]} Rc2 {[%emt 0:01:33] Inhibits Qd2.} 38. Qxc2 {[%emt 0:01:53]} Bxc2 {[%emt 0:00:05]} 39. Rxc2 {[%emt 0:00:04]} Qd4+ {[%emt 0:00:29]} 40. Kh2 {[%emt 0:00:39]} Qd6 {[%emt 0:00:38]} 41. Kg1 {[%emt 0:00:41]} Qxa3 {[%emt 0:00:21]} 42. Kh2 {[%emt 0:02:32] [#]} Qd3 $1 {[%emt 0:01:44]} 43. Rf2 {[%emt 0:01:03]} (43. Rb2 Nf1+) 43... Nf5 {[%emt 0:00:34]} 44. Rfe2 {[%emt 0:01:05]} Qd6+ {[%emt 0:00:19]} 45. Kg1 {[%emt 0:00:05]} Qg3 {[%emt 0:00:27]} 46. Re4 {[%emt 0:00:41] Against Nd4} h5 {[%emt 0:00:07] Prevents Rg4+.} 47. Rf1 {[%emt 0:00:41]} Nh4 {[%emt 0:00:46][%csl Gh4][%cal Rg3g2]} 48. Re2 {[%emt 0:00:03]} Ng6 {[%emt 0:00:14]} 49. Ref2 {[%emt 0:00:48]} Nf4 {[%emt 0:00:27]} 50. Kh1 {[%emt 0:00:11]} Kg6 {[%emt 0:00:34]} 51. Rd2 {[%emt 0:00:25]} Kf5 {[%emt 0:00:56]} 52. Rdf2 {[%emt 0:00:02]} Ke5 {[%emt 0:01:33]} 53. Rd2 {[%emt 0:00:16]} h4 {[%emt 0:00:32]} 54. Rdf2 {[%emt 0:00:28]} Kd4 {[%emt 0:00:29]} 55. Ra2 {[%emt 0:01:07]} Ke3 {[%emt 0:00:50]} 56. Rb2 {[%emt 0:00:49]} Nd3 {[%emt 0:00:59]} 57. Ra2 {[%emt 0:00:34]} f5 $2 {[%emt 0:00:22]} (57... Qd6 58. Rfa1 f5) (57... Qc7 $19 {and Black stays clearly on top. Strongly threatening ...Qc4.} 58. Ra3 Qd6) 58. Rc2 $2 {[%emt 0:00:59][%mdl 8192]} (58. f4 $17) 58... Qg6 {[%emt 0:02:01]} 59. Ra2 {[%emt 0:00:37] Inhibits Qa6.} Qe6 {[%emt 0:00:34]} 60. Rfa1 {[%emt 0:00:28]} Kf4 {[%emt 0:00:41]} 61. Ra3 $2 {[%emt 0:00:31] [#]} (61. Kh2) (61. Kh2 $19) 61... Qe2 $2 {[%emt 0:00:55]} (61... Kg3 62. Ra8 Nf2+ 63. Kg1 Nxh3+ 64. Kf1 Qc4+ 65. Ke1 Qc3+ 66. Ke2 Nf4+ 67. Kd1 Nxg2 68. R1a3 Qd4+ 69. Kc1 Ne3 70. Rg8+ Kf4 71. Rb3 Qd1+ 72. Kb2 Qc2+ 73. Ka3 Nc4+ 74. Kb4 Nd2 75. Ra3 Qb2+ 76. Ka4 h3 77. Rg1 Qd4+ 78. Kb5 Qxg1 79. Ra6 Qb1+ 80. Kc5 Qc2+ 81. Kb5 Qc4+ 82. Ka5 Qd5+ 83. Kb6 h2 84. Kc7 h1=Q 85. Ra4+ Nc4 86. Rb4 Qd6+ 87. Kb7 Qxf3+ 88. Ka7 Qxb4 89. Ka6 Qfb7#) (61... Kg3 $1 62. f4 (62. Ra8 Nf2+) 62... Qe3 63. R3a2 Nf2+ 64. Kg1 Nxh3+ 65. Kf1 Nxf4 66. Rd1 Qe4 67. Kg1 Ne2+ 68. Kf1 Qxg2+ 69. Ke1 Qf2+ 70. Kd2 Nf4+ 71. Kc3 Qxa2 72. Rg1+ Kf2 73. Rh1 Nd5+ 74. Kd4 Qb2+ 75. Kc5 Qb6+ 76. Kc4 Qb4+ 77. Kxd5 Qb7+ 78. Ke5 Qxh1 79. Kd6 h3 80. Kd7 Qd5+ 81. Ke8 h2 82. Kf8 h1=Q 83. Ke7 Qh4+ 84. Kf8 Qh8+ 85. Ke7 Qe6#) 62. R3a2 {[%emt 0:00:30]} Qe5 {[%emt 0:00:23]} 63. Ra3 $2 {[%emt 0:00:30] [#]} (63. Rd1 Qe3 64. Rda1) (63. Kh2 $19) 63... Qe3 $2 {[%emt 0:01:00]} (63... Kg3 64. R3a2 Nf2+ 65. Kg1 Qd4 66. Kf1 Nd1 67. f4 Nc3 68. Rb2 Ne4 69. Rba2 Nd2+ 70. Ke1 Nb3 71. Rd1 Qg1+ 72. Ke2 Qf2+ 73. Kd3 Qxa2 74. Kc3 Nc5 75. Re1 Qa5+ 76. Kc4 Qxe1 77. Kxc5 Kxf4 78. Kd6 Qe4 79. Kd7 Ke5 80. Kc7 Qxg2 81. Kb6 Qd5 82. Ka6 Qb3 83. Ka5 Kd6 84. Ka6 Kc6 85. Ka7 Qb7#) (63... Kg3 $1 64. Ra8 (64. R3a2 Nf2+) 64... Nf2+ 65. Kg1 Nxh3+ $1 {[%mdl 512]} 66. Kf1 Qb5+ 67. Ke1 Nf4 68. R1a2 Nxg2+ 69. Kd2 h3 70. Rg8+ Kf4 71. Raa8 Qb2+ 72. Kd3 Ne3 73. Rac8 h2 74. Rh8 Qb1+ 75. Kd4 h1=R 76. Rxh1 Qxh1 77. Rc6 Qxf3 78. Rh6 Qd5+ 79. Kc3 Ke4 80. Rh4+ f4 81. Rh2 Qb5 82. Rh1 Qd3+ 83. Kb4 Nd5+ 84. Ka5 Qa3+ 85. Kb5 Qb4+ 86. Kc6 Qb6+ 87. Kd7 Qc7+ 88. Ke8 Qe7#) 64. Kh2 {[%emt 0:00:27]} Qe5 $2 {[%emt 0:00:19]} (64... Kg5 65. R3a2 Qc5) (64... Kg5 $19 65. R3a2 Qf4+ 66. Kg1 Qd4+ 67. Kh2 Qc5) 65. Kh1 $1 {[%emt 0:00:24] [#]} Nc5 $2 {[%emt 0:00:59]} (65... Kg3 $1 66. R3a2 Nf2+ 67. Kg1 Qd4 68. f4 Nxh3+ 69. Kf1 Qg1+ 70. Ke2 Nxf4+ 71. Kd2 Qxg2+ 72. Kc3 Qc6+ 73. Kd4 Qd5+ 74. Kc3 Ne2+ $1 {[%mdl 512]} 75. Kb4 Qd4+ 76. Ka5 f4 $1 77. Ka6 f3 78. Ra4 Qd6+ 79. Ka7 h3 80. Ra5 h2 81. Ka8 f2 82. Kb7 Qd7+ 83. Kb6 Qd4+ 84. Kc7 Qf4+ 85. Kd8 Ng1 86. Rh5 Qd4+ 87. Ke8 Qxa1 88. Rg5+ Kh4 89. Rf5 h1=Q 90. Rf4+ Kg3 91. Rf5 Qc6+ 92. Kxf7 Qd7+ 93. Kg6 Qag7+ 94. Kh5 Qxf5#) 66. Ra5 $2 {[%emt 0:00:36]} (66. Kh2) 66... Kg3 {[%emt 0:00:26] Threatens to win with ...Qe3.} 67. R5a3 {[%emt 0:00:30] [#] Against Qe3} Qf4 {[%emt 0:00:25]} (67... Nd3 $142 $1 {[%mdl 512]} 68. R3a2 Nf2+ 69. Kg1 Qd4 70. f4 Nxh3+ 71. Kf1 Qg1+ 72. Ke2 Nxf4+ 73. Kd2 Qxg2+ 74. Kc3 Qc6+ 75. Kd2 Qd5+ 76. Kc3 Qc5+ 77. Kb3 Qb5+ 78. Kc3 Ne2+ 79. Kc2 h3 80. Ra3+ Kg2 81. Kd2 Qb2+ 82. Ke3 h2 83. Re1 f4+ 84. Ke4 Qb4+ 85. Kd5 Qxe1 86. Rd3 h1=Q 87. Kc6 Qa5 88. Kd7 Qh8 89. Rg3+ fxg3 90. Kd6 Qf6+ 91. Kd7 Qe6#) 68. Ra8 {[%emt 0:00:27]} Nd3 {[%emt 0:00:25]} 69. R8a4 $2 {[%emt 0:00:40]} (69. Rg8+ $19 Kf2 70. Ra2+ Kf1 71. Ra1+ Kf2 72. Ra2+ Ke3 73. Re8+ Ne5 74. Re7) 69... Qe3 {[%emt 0:00:28]} 70. R4a3 {[%emt 0:00:26]} Qd2 {[%emt 0:00:41][%csl Gg3][%cal Rd2g2]} 71. R3a2 {[%emt 0:00:27]} Nb2 {[%emt 0:00:05]} (71... Nf2+ $142 72. Kg1 Qd4 73. Kf1 Nd1 74. Ke1 Nb2 75. Rxb2 Qxb2 76. Ra8 Qxg2 77. Rg8+ Kxh3 78. Rf8 Kg3 79. Rd8 h3 80. Rg8+ Kxf3 81. Rxg2 hxg2 82. Kd1 g1=Q+ 83. Kc2 Qc5+ 84. Kb3 Ke4 85. Ka2 Kd3 86. Kb1 Qb6+ 87. Ka1 Kc2 88. Ka2 Qb2#) 72. Rg1 {[%emt 0:00:15]} f4 {[%emt 0:00:49]} 73. Ra8 {[%emt 0:00:42]} Nd1 {[%emt 0:00:39][%cal Rd1f2]} 74. Rg8+ {[%emt 0:00:20]} Kf2 {[%emt 0:00:04] ( -> ...Nc3)} 75. Re8 {[%emt 0:00:20]} Ne3 {[%emt 0:00:22]} (75... Nc3 $142 76. Kh2 Ne2 77. Rh1 Qb2 78. Rg8 Ng3 79. Rd1 Nf1+ 80. Kh1 Ne3 81. Rg1 Nf1 82. g3 Qc3 83. gxh4 Ng3+ 84. Kh2 Qxf3 85. h5 Nf1+ 86. Rxf1+ Kxf1 87. h4 Qxh5 88. Rg1+ Kf2 89. Rg2+ Ke3 90. Ra2 Qe5 91. Kg1 f3 92. h5 Qg5+ 93. Kf1 Qb5+ 94. Kg1 Qb1+ 95. Kh2 Qxa2+ 96. Kh3 Qg2+ 97. Kh4 f5 98. h6 Qg4#) 76. Rf8 {[%emt 0:00:42]} Qd5 {[%emt 0:00:28]} (76... Nf1 $142 77. Ra8 Qb2 78. Rg8 Qb1 79. g3 hxg3 80. h4 Kxf3 81. Rg7 Qd1 82. R7xg3+ fxg3 83. Rg2 Ne3+ 84. Rg1 Qe2 85. Rxg3+ Kxg3 86. Kg1 Qh2#) 77. Rh8 {[%emt 0:00:45]} Qg5 {[%emt 0:01:12]} (77... Nf1 $142 78. Rb8 Qa2 79. Rg8 Qb3 80. Rb8 Qxb8 81. g3 Qb1 82. Rg2+ Kxf3 83. Rg1 Nxg3+ 84. Kh2 Qc2+ 85. Rg2 Qxg2#) 78. Rb8 {[%emt 0:00:26]} Qg7 {[%emt 0:00:25]} 79. Ra8 {[%emt 0:00:22]} Qb2 {[%emt 0:00:22]} (79... Kg3 $142 {aiming for ...Nc4.} 80. Rc8 Qb2 81. Rg8+ Kf2) 80. Rg8 $2 {[%emt 0:00:38]} (80. Rga1 $19 Qg7 81. R1a2+ Kg3 82. Rd2) 80... Nf5 {[%emt 0:00:30]} 81. Rd8 {[%emt 0:00:36]} Qf6 {[%emt 0:00:51]} (81... Ng3+ 82. Kh2 Ne2 83. Rh1 Qg7 84. Rg1 Nxg1 85. Rd2+ Ne2 86. Rxe2+ Kxe2 87. Kg1 Qa1+ 88. Kh2 Qf1 89. g4 hxg3#) (81... Ng3+ $142 82. Kh2 Ne2 83. Rgd1 Qg7 84. Rg1 Nxg1 85. Rd2+ Ne2 86. Rxe2+ Kxe2 87. Kg1 Qa1+ 88. Kh2 Qf1 89. g4 hxg3#) 82. Rg8 {[%emt 0:00:28]} (82. Rd2+ Kg3 83. Rd7) 82... Nd4 $2 {[%emt 0:00:18]} (82... Ng3+ {mates} 83. Kh2 Nf1+ 84. Kh1 Qf5 85. Re8 Qb1 86. Re2+ Kxe2 87. g3 Kxf3 88. gxf4 Ng3+ 89. Kh2 Qc2+ 90. Rg2 Qxg2#) 83. Re8 $2 {[%emt 0:00:34]} (83. Ra8 $19) 83... Ne2 {[%emt 0:00:19] Black mates.} 84. Rd1 {[%emt 0:00:27]} Qg6 {[%emt 0:00:07][%csl Gf2][%cal Rg6g2]} 85. Rxe2+ {[%emt 0:00:17]} Kxe2 {[%emt 0:00:01]} 86. Ra1 {[%emt 0:00:26]} Kf2 {[%emt 0:00:04][%csl Gf2][%cal Rg6g2]} 87. Ra2+ {[%emt 0:00:12]} Kg3 {[%emt 0:00:06][%cal Rg6b1]} 88. Ra1 {[%emt 0:00:03]} Qc2 {[%emt 0:00:04] Weighted Error Value: White=0.51/Black=0.42} 0-1